Cogmind - Beta 17 @@@ ROGUE MODE // 2026.07.25 @ 18:55:45 Player: Afro Result: Destroyed by G-34 Mercenary with Small Laser Performance ------------- Evolutions (0) 0 Regions Visited (1) 200 Robots Destroyed (11) 55 Value Destroyed (64) 64 Prototype IDs (0) 0 Alien Tech Used (0) 0 Bonus (0) 0 TOTAL SCORE: 319 Bonus ------- None Cogmind --------- Core Integrity 0/250 Matter 300/300 Energy 100/100 System Corruption 3% Temperature Cool (6) Movement Treading (160) Location -10/Materials Parts ------- > --- POWER (1) -------- (None) > --- PROPULSION (2) --- Light Treads > --- UTILITY (2) ------ Small Storage Unit Improved Terrain Scanner > --- WEAPON (2) ------- (None) > --- INVENTORY (8) ---- Light Ion Engine Light Ion Engine High-capacity Matter Pod (50) High-capacity Matter Pod (0) Improved Terrain Scanner Improved Terrain Scanner Seismic Detector Peak State ------------ > --- POWER ------------ Light Ion Engine > --- PROPULSION ------- Light Treads Light Treads > --- UTILITY ---------- Small Storage Unit Improved Terrain Scanner > --- WEAPON ----------- Mining Laser Mining Laser > --- INVENTORY -------- Light Ion Engine Light Ion Engine Improved Terrain Scanner Improved Terrain Scanner Medium Laser Assault Rifle Mining Laser [Rating: 10] Favorites ----------- Power Light Ion Engine Engine Light Ion Engine Propulsion Light Treads Treads Light Treads Utility Small Storage Unit Device Improved Terrain Scanner Storage Small Storage Unit Weapon Mining Laser Energy Gun Medium Laser Ballistic Gun Assault Rifle Special Weapon Mining Laser Build | -11 -10 ------- Run | Yrd Mat Slots Evolved . | . . Power . | . . Propulsion . | . . Utility . | . . Weapon . | . . Parts Attached 10 | 9 1 Power 1 | 1 . Engine 1 | 1 . Core . | . . Reactor . | . . Propulsion 2 | 2 . Treads 2 | 2 . Leg . | . . Wheel . | . . Hover . | . . Flight . | . . Utility 2 | 2 . Device 1 | 1 . Storage 1 | 1 . Processor . | . . Hackware . | . . Protection . | . . Artifact . | . . Weapon 5 | 4 1 Energy Gun 1 | 1 . Energy Cannon . | . . Ballistic Gun 1 | 1 . Ballistic Cannon . | . . Launcher . | . . Special Weapon 3 | 2 1 Impact Weapon . | . . Slashing Weapon . | . . Piercing Weapon . | . . Special Melee Weapon . | . . Unidentified Prototypes . | . . Parts Lost 5 | . 5 Power 1 | . 1 Propulsion 1 | . 1 Utility . | . . Weapon 3 | . 3 Highest Loss Streak 5 | . 5 To Critical Strikes . | . . Average Backups 5 | 5 7 Power 1 | 1 2 Propulsion . | . . Utility 1 | 1 4 Weapon 2 | 2 1 Tool/Special . | . . Unused Backups 7 | . 7 Power 2 | . 2 Propulsion . | . . Utility 5 | . 5 Weapon . | . . Tool/Special . | . . Average Slot Usage (%) 88 | . 88 Engine 11 | . 11 Treads 25 | . 25 Device 14 | . 14 Storage 14 | . 14 Special Weapon 22 | . 22 Peak Build Rating 10 | 10 10 Average Rating 8 | 8 9 On Entrance 5 | . 10 Avg Prop Armor Cover (%) . | . . Naked Turns . | . . Heaviest Build 12 | 12 11 Greatest Support 40 | 40 40 Greatest Overweight (x) . | . . Average Overweight (x) . | . . Largest Inventory Capacity 8 | 8 8 Average Capacity 7 | 7 8 Most Carried 8 | 8 8 Average Carried 5 | 5 7 Final Capacity 8 | 8 8 Final Carried 8 | 8 7 Class Distribution -------------------- 100% | Mutant Dominant Class ---------------- Mutant | -10/Materials Resources | -11 -10 ----------- Run | Yrd Mat Matter Collected 305 | 305 . Remotely . | . . Salvage Created 108 | 108 . Parts 18 | 18 . Haulers Intercepted . | . . Recyclers Shooed 2 | 1 1 Parts Field Recycled . | . . Retrieved Matter . | . . Parts Self-Destructed . | . . Prevented . | . . Parts Restored . | . . Kills | -11 -10 ------- Run | Yrd Mat Combat Hostiles Destroyed . | . . Classes Destroyed 3 | 3 . Worker 2 | 2 . Tunneler 8 | 8 . Recycler 1 | 1 . Best Kill Streak 2 | 2 . Combat Bots Only . | . . Max Kills in Single Turn 1 | 1 . Gunslinging . | . . Exploded . | . . Melee . | . . Uniques/NPCs Destroyed . | . . Combat | -11 -10 -------- Run | Yrd Mat Hostile Shots Fired 85 | . 85 Missed 24 | . 24 Hits 61 | . 61 Projectile 61 | . 61 Damage Taken 826 | . 826 Core 256 | . 256 Absorbed by Shields . | . . Core Remaining (%) 100 | 100 . Volleys Fired 29 | 24 5 Largest 2 | 2 2 Hottest 200 | 200 200 Shots Fired 57 | 48 9 Gun 12 | 12 . Cannon . | . . Launcher . | . . Special 45 | 36 9 Kinetic 5 | 5 . Thermal 52 | 43 9 Explosive . | . . Electromagnetic . | . . Robot Hit Streak 4 | 4 1 Robot Miss Streak 5 | 3 5 Penetration Max . | . . Secondary Targets . | . . Shots Hit Robots 26 | 24 2 Core Hits 15 | 12 3 Critical Kills . | . . Critical Parts Destroyed . | . . Critical Strikes . | . . Melee Attacks . | . . Impact . | . . Slashing . | . . Piercing . | . . Sneak Attacks . | . . Combat Hostiles . | . . Follow-up Attacks . | . . Damage Inflicted 536 | 478 58 Guns 94 | 94 . Cannons . | . . Explosions . | . . Melee . | . . Ramming 10 | . 10 Kinetic 20 | 20 . Thermal 506 | 458 48 Explosive . | . . Electromagnetic . | . . Impact . | . . Slashing . | . . Piercing . | . . Highest Corruption 3 | . 3 Average Corruption 3 | . 3 Corruption Purged . | . . Corruption Blocked . | . . Overload Shots . | . . Overflow Damage 26 | 22 4 Projectiles 26 | 22 4 Explosions . | . . Melee . | . . Knockbacks . | . . Impact . | . . Kinetic . | . . Secondary . | . . Self-Inflicted Damage . | . . Shots . | . . Rammed 9 | . 9 Targets Rammed 9 | . 9 Kicked . | . . Crushed . | . . Highest Temperature 140 | 112 140 Average Temperature 44 | 41 62 Received Heat Transfer 54 | . 54 Siege Activations . | . . Martial Activations . | . . Shielding Activations . | . . Robots Disrupted . | . . Combat Hostiles . | . . Robots Corrupted . | . . Combat Hostiles . | . . Parts Fried . | . . Impact Corruptions . | . . Robots Melted . | . . Combat Hostiles . | . . Parts Melted . | . . Heat Transferred 1122 | 1022 100 Parts Sabotaged . | . . Parts Stolen . | . . Parts Stripped . | . . Power Chain Reactions . | . . Alert | -11 -10 ------- Run | Yrd Mat Maximum Alert Level . | . . Low Security (%) 100 | 100 100 Level 1 . | . . Level 2 . | . . Level 3 . | . . Level 4 . | . . Level 5 . | . . High Security . | . . Max Security . | . . Peak Influence 10 | 10 1 Initial . | . . Average . | . . Influence Increases 58 | 55 3 Destroy 0b10 Robot/NC 55 | 55 . Destroy Structure 3 | . 3 Influence Decreases 58 | 55 3 Time Decay 56 | 55 1 Lost Part 2 | . 2 Squads Dispatched . | . . Investigation . | . . Extermination . | . . Reinforcement . | . . Assault . | . . Garrison . | . . Intercept . | . . Searches Triggered . | . . Construction Impeded . | . . Haulers Reinforced . | . . Active Scanning Responses . | . . Cargo Convoy Interrupts . | . . Stealth | -11 -10 --------- Run | Yrd Mat Distress Signals 1 | . 1 Communications Jammed . | . . Distress Signals . | . . Times Spotted 6 | . 6 Peak Tracking Total 6 | . 6 Tactical Retreats . | . . Traps | -11 -10 ------- Run | Yrd Mat Traps Triggered . | . . Indirectly . | . . Trap Hack Attempts . | . . Triggered . | . . Disarmed . | . . Reprogrammed . | . . Reused . | . . Traps Extracted . | . . Installed . | . . Triggered . | . . Machines | -11 -10 ---------- Run | Yrd Mat Machines Disabled . | . . Max in Single Turn . | . . Machines Repaired . | . . Machines Dismantled . | . . Machines Sabotaged . | . . Overloaded Fab Kills . | . . Hacking | -11 -10 --------- Run | Yrd Mat Machines Accessed . | . . Terminals . | . . Fabricators . | . . Repair Stations . | . . Recycling Units . | . . Scanalyzers . | . . Garrison Access . | . . Total Hacks . | . . Successful . | . . Failed . | . . Catastrophic . | . . Database Lockouts . | . . Manual . | . . Terminals . | . . Fabricators . | . . Repair Stations . | . . Recycling Units . | . . Scanalyzers . | . . Garrison Access . | . . Terminal Hacks . | . . Fabricator Hacks . | . . Repair Station Hacks . | . . Recycling Unit Hacks . | . . Scanalyzer . | . . Garrison Access Hacks . | . . Unauthorized Hacks . | . . Terminals . | . . Fabricators . | . . Repair Stations . | . . Recycling Units . | . . Scanalyzers . | . . Garrison Access . | . . Data Cores Recovered . | . . Used . | . . Hacking Detections . | . . Full Trace Events . | . . Feedback Events . | . . Feedback Blocked . | . . Robot Schematics Acquired . | . . Robots Built . | . . Authchips . | . . Time . | . . Total Robot Build Rating . | . . Part Schematics Acquired . | . . Parts Built . | . . Authchips . | . . Time . | . . Total Part Build Rating . | . . Part Studies Acquired . | . . Parts Repaired . | . . Time . | . . Parts Recycled . | . . Recycled Matter . | . . Retrieved Matter . | . . Retrieved Components . | . . Parts Scanalyzed . | . . Part Schematics Acquired . | . . Parts Damaged . | . . Bothacking | -11 -10 ------------ Run | Yrd Mat Used RIF Installer . | . . Robots Hacked . | . . Non-combat . | . . Combat . | . . Robot Hacks Applied . | . . Relay Couplers Released . | . . Fabnet Peak Effective % . | . . Robots Rewired . | . . Allies Hacked . | . . Hacks Repelled . | . . Allies | -11 -10 -------- Run | Yrd Mat Total Allies . | . . Largest Group . | . . Highest-Rated Group . | . . Highest-Rated Ally . | . . Total Orders . | . . Ally Attacks . | . . Total Damage . | . . Kills . | . . Allies Corrupted . | . . Allies Melted . | . . Intel | -11 -10 ------- Run | Yrd Mat Active Infowar (turns) 694 | 510 184 Terrain 694 | 510 184 Robot Analysis Total . | . . Derelict Logs Recovered . | . . Drone Launches . | . . Drone Recoveries . | . . Exploration | -11 -10 ------------- Run | Yrd Mat Turns Passed 787 | 603 184 Spaces Moved 360 | 276 84 Core 6 | 6 . Treads 354 | 270 84 Legs . | . . Wheels . | . . Hover . | . . Flight . | . . Fastest Speed 50 | 50 160 Average Speed 158 | 157 160 Slowest Speed 160 | 160 160 Overloaded Moves . | . . Propulsion Burnouts . | . . Robots Hopped . | . . Potential Cave-ins . | . . Cave-ins Triggered 1 | . 1 Exploration Rate (%) 13 | 8 18 Regions Visited 1 Branch Regions . Pre-discovered Areas . | . . Known Exits Taken . | . . Unknown Exits Taken 1 | 1 . Scrap Searched . | . . Spaces Dug . | . . Terrain Destroyed 11 | 8 3 Melee . | . . Projectile 11 | 8 3 AOE . | . . Terrain Rammed . | . . Walls Destroyed . | . . Machines Disabled . | . . Actions | -11 -10 --------- Run | Yrd Mat Total 426 | 323 103 Wait . | . . Move 359 | 275 84 Hop . | . . Pick Up 17 | 15 2 Fast Attach . | . . Attach 8 | 7 1 Detach . | . . Swap 2 | 2 . Drop 2 | . 2 Fire 29 | 24 5 Melee . | . . Ram . | . . Kick . | . . Crush 9 | . 9 Escape Stasis . | . . Rewire . | . . Trap . | . . Miscellaneous . | . . Route ------- -11/Scrapyard -10/Materials History --------- Turn | Location | Event 18 | -11/Scrapyard | Discovered new exit (range 15) 604 | -11/Scrapyard | Entered Materials 605 | -10/Materials | Build established: Mutant 743 | -10/Materials | Crushed by falling debris 748 | -10/Materials | Core integrity fell below 50% 771 | -10/Materials | Core integrity fell below 20% 786 | -10/Materials | Lost 5 parts (1p1n3w) 788 | -10/Materials | Destroyed by G-34 Mercenary with Small Laser Last Messages --------------- Destroyed Flight Unit. Mining Laser destroyed. R-06 Scavenger collects Lgt. Assault Rifle. W-16 Scout sends out distress signal. The unstable cave ceiling collapses. Crushed by falling debris. [Achievement: Unlikely Earthworm] Mining Laser destroyed. System corrupted by crushing effect (+1). Lgt. Ion Engine destroyed. System corrupted by crushing effect (+2). U-05 Engineer builds a Wall. R-06 Scavenger collects Flight Unit. Slammed into U-05 Engineer. U-05 Engineer builds a Wall. Slammed into U-05 Engineer. Lgt. Treads destroyed. Mining Laser destroyed. K-01 Serf collects debris. Slammed into S-10 Pest. Map ----- +----------------------------------------------------+ | ??????????????????????????????????????? | | ??????????????????????????????????????? | | ??????????????????????????????????????? | | ???????????? ??????????????????????? | | ??????????? ????? ????????????????? | | ??????????? ?#??????????? ????????? | | ?????????? #?????????????????????? | | ??????????? #?????????????#???????? | | ????#??????" # ??? ????????????????? | | ????# ?"""" #?????????????????????? | | ????# """"" #?????????? ??????????? | | ????# """"" #?? ???????????? ????? | | ????# """ +?????????????????????? | | ???## #?????????????????????? | | ????# # ??? ?? ??#?????????? | | ????# """ ########### #?????????? | | ???## """"" ^ ##????????? | | ????# """"" % #######?#?? | | ????# """"" | | ????# """ ######### #??????? | | ????# #?????###!! #?????#? | | ????# ########?? ##?????? | | ????# # T #?? ???? | | ???## # #??? ?? | | ????# gg# ! #??? ?? | | ????# ##### s@/ s ! #???? ##### ?? | | ????# ##?#?# # ! ##??? ##?????"??? | | ????# ##???# # #?? ?#?????????? | | ?##?# ###### #########??????????????? | | ????# ## #?????????? ???????????? | | ????# ## #??????????????????????? | | ???## ## #???????#????#?????????? | | ???##+#####+#####????#????????????????? | | ???# #?????????#??????????????? | | #??# #???????#??#?????????????? | | ???# """ #??#?###?????????????????? | | ???# """ #?? ##### !??????????? | | ???# """ "" # ??????????? | | ???# T" + "???????????? | | ???# "" # ??????????? | | ???# #?? ##### ??????????? | | ???###########????##?#????????????????? | | ???????????????????##?????????????????? | | ???????????????? ?????????????????????? | | ????????????????????+?????????????????? | | ??????????????????????????????????????? | | ???????????? ??#??????????????????????? | | ??????????????????????????????????????? | | ??????????????????????????????????????? | | ??????????????????????????????????????? | +----------------------------------------------------+ Best States ------------- Heat Dissipation 25 Energy Generation 10 Energy Capacity 125 Matter Stores 300 Matter Capacity 300 Sight Range 16 Terrain Scan Range 16 Terrain Scan Density 10 Evasion (%) 40 Recoil Reduction 2 Item Schematics ----------------- None Robot Schematics ------------------ None Fabricated ------------ Nothing Repaired ---------- Nothing Studied --------- None Alien Tech Used ----------------- None Achievements -------------- Unlikely Earthworm Challenges ------------ None Game ------ Seed AlertPrecisionSaw Manual? 0 Play Time 00:09:10 Cumulative 6.4 hours Start 2026.07.25 @ 18:41:19 End 2026.07.25 @ 18:55:45 Sessions 1 Manual Loads 0 Difficulty Rogue Special Mode None Game No. 5 Rogue 5 Adventurer 0 Explorer 0 Win Type - Total 0 Types 0/0/0/0/0/0/0/0/0/0 Lore% 1 Gallery% 7 Achievement% 7 Wizard Run 0 Options --------- Layout 1 ASCII 0 Keyboard 0 Movement Mouse Keybinds 0 Fullscreen 2 Font 24/Smallcaps Map View 50x35 Zoom Use 0% Tactical HUD 0 Map Filters NONE Filters NONE Steam 1 RUN: 81939578-5bd1-4c12-9e59-1a2cc4bda628